fUSD/lending_fUSD_20241224
["ID","MTS","AMOUNT","RATE_DAILY","PERIOD"]
[346506929,1735013433396,-500.0,0.00013698,2]
[346506930,1735013433408,-500.0,0.00013698,2]
[346506931,1735013433419,-500.0,0.00013698,2]
[346506932,1735013433430,-500.0,0.00013698,2]
[346506933,1735013433441,-500.0,0.00013698,2]
[346506934,1735013433454,-500.0,0.00013698,2]
[346506935,1735013433466,-500.0,0.00013698,2]
[346506936,1735013433478,-500.0,0.00013698,2]
[346506937,1735013433492,-910.23,0.00013698,2]
[346506938,1735013433504,-500.0,0.00013698,2]
[346506939,1735013433516,-500.0,0.00013698,2]
[346506940,1735013433528,-500.0,0.00013698,2]
[346506941,1735013433540,-500.0,0.00013698,2]
[346506942,1735013433551,-500.0,0.00013698,2]
[346506943,1735013433562,-500.0,0.00013698,2]
[346506944,1735013433574,-500.0,0.00013698,2]
[346506945,1735013433587,-500.0,0.00013698,2]
[346506946,1735013433597,-729.1,0.00013698,2]
[346506947,1735013433609,-500.0,0.00013698,2]
[346506948,1735013433620,-500.0,0.00013698,2]
[346506949,1735013433630,-500.0,0.00013698,2]
[346506950,1735013433639,-502.19167344,0.00013698,2]
[346506951,1735013433650,-499.90652829,0.00013698,2]
[346506952,1735013433661,-500.0,0.00013698,2]
[346506953,1735013433671,-500.0,0.00013698,2]
[346506954,1735013433682,-504.32163712,0.00013698,2]
[346506955,1735013433693,-502.75382502,0.00013698,2]
[346506956,1735013433703,-500.0,0.00013698,2]
[346506957,1735013433715,-500.0,0.00013698,2]
[346506958,1735013433729,-853.34,0.00013698,2]
[346506959,1735013433740,-512.96,0.00013698,2]
[346506960,1735013433751,-500.0,0.00013698,2]
[346506961,1735013433762,-501.33940536,0.00013698,2]
[346506962,1735013433773,-500.0,0.00013698,2]
[346506963,1735013433783,-500.0,0.00013698,2]
[346506964,1735013433793,-502.68601013,0.00013698,2]
[346506965,1735013433803,-500.0,0.00013698,2]
[346506966,1735013433814,-500.0,0.00013698,2]
[346506967,1735013433825,-500.0,0.00013698,2]
[346506968,1735013433835,-500.0,0.00013698,2]
[346506969,1735013433847,-500.0,0.00013698,2]
[346506970,1735013433860,-500.0,0.00013698,2]
[346506971,1735013433872,-500.0,0.00013698,2]
[346506972,1735013433883,-500.0,0.00013698,2]
[346506973,1735013433894,-500.0,0.00013698,2]
[346506974,1735013433904,-500.0,0.00013698,2]
[346506975,1735013433914,-500.0,0.00013698,2]
[346506976,1735013433924,-500.0,0.00013698,2]
[346506977,1735013433934,-260.37986273,0.00013698,2]
[346506978,1735013433945,-500.851212,0.00013698,2]
[346506979,1735013433956,-500.0,0.00013698,2]
[346506980,1735013433968,-500.0,0.00013698,2]
[346506981,1735013433980,-838.33,0.00013698,2]
[346506982,1735013433992,-500.0,0.00013698,2]
[346506983,1735013434004,-500.0,0.00013698,2]
[346506984,1735013434014,-501.27194077,0.00013698,2]
[346506985,1735013434025,-500.0,0.00013698,2]
[346506986,1735013434035,-500.0,0.00013698,2]
[346506987,1735013434046,-734.44,0.00013698,2]
[346506988,1735013434056,-500.0,0.00013698,2]
[346506989,1735013434066,-500.0,0.00013698,2]
[346506990,1735013434077,-500.0,0.00013698,2]
[346506991,1735013434087,-500.0,0.00013698,2]
[346506992,1735013434098,-644.77,0.00013698,2]
[346506993,1735013434108,-500.0,0.00013698,2]
[346506994,1735013434119,-502.9861487,0.00013698,2]
[346506995,1735013434130,-500.0,0.00013698,2]
[346506996,1735013434140,-500.0,0.00013698,2]
[346506997,1735013434150,-500.0,0.00013698,2]
[346506998,1735013434161,-500.0,0.00013698,2]
[346506999,1735013434176,-500.0,0.00013698,2]
[346507000,1735013434187,-500.0,0.00013698,2]
[346507001,1735013434198,-500.0,0.00013698,2]
[346507002,1735013434208,-500.0,0.00013698,2]
[346507003,1735013434219,-500.0,0.00013698,2]
[346507004,1735013434229,-500.0,0.00013698,2]
[346507005,1735013434239,-282.20056359,0.00013698,2]
[346507006,1735013434250,-500.0,0.00013698,2]
[346507007,1735013434261,-500.0,0.00013698,2]
[346507008,1735013434271,-504.04,0.00013698,2]
[346507009,1735013434282,-500.0,0.00013698,2]
[346507010,1735013434292,-500.0,0.00013698,2]
[346507011,1735013434303,-500.0,0.00013698,2]
[346507012,1735013434313,-500.0,0.00013698,2]
[346507013,1735013434324,-500.0,0.00013698,2]
[346507014,1735013434334,-500.0,0.00013698,2]
[346507015,1735013434344,-830.79,0.00013698,2]
[346507016,1735013434354,-500.0,0.00013698,2]
[346507017,1735013434364,-730.01,0.00013698,2]
[346507018,1735013434377,-500.0,0.00013698,2]
[346507019,1735013434387,-500.0,0.00013698,2]
[346507020,1735013434398,-500.0,0.00013698,2]
[346507021,1735013434408,-500.0,0.00013698,2]
[346507022,1735013434418,-500.0,0.00013698,2]
[346507023,1735013434428,-500.0,0.00013698,2]
[346507024,1735013434439,-500.0,0.00013698,2]
[346507025,1735013434449,-500.0,0.00013698,2]
[346507026,1735013434460,-500.0,0.00013698,2]
[346507027,1735013434470,-500.0,0.00013698,2]
[346507028,1735013434481,-500.0,0.00013698,2]
[346507029,1735013434492,-500.0,0.00013698,2]
[346507030,1735013434502,-500.0,0.00013698,2]
[346507031,1735013434514,-500.0,0.00013698,2]
[346507032,1735013434524,-500.0,0.00013698,2]
[346507033,1735013434534,-505.11381958,0.00013698,2]
[346507034,1735013434544,-500.0,0.00013698,2]
[346507035,1735013434554,-500.0,0.00013698,2]
[346507036,1735013434564,-500.0,0.00013698,2]
[346507037,1735013434574,-503.90526401,0.00013698,2]
[346507038,1735013434584,-500.0,0.00013698,2]
[346507039,1735013434595,-655.75,0.00013698,2]
[346507040,1735013434605,-500.0,0.00013698,2]
[346507041,1735013434615,-947.07,0.00013698,2]
[346507042,1735013434634,-500.0,0.00013698,2]
[346507043,1735013434644,-500.0,0.00013698,2]
[346507044,1735013434654,-500.0,0.00013698,2]
[346507045,1735013434665,-500.0,0.00013698,2]
[346507046,1735013434674,-500.0,0.00013698,2]
[346507047,1735013434684,-500.0,0.00013698,2]
[346507048,1735013434694,-500.0,0.00013698,2]
[346507049,1735013434704,-500.0,0.00013698,2]
[346507050,1735013434715,-500.0,0.00013698,2]
[346507051,1735013434725,-500.0,0.00013698,2]
[346507052,1735013434735,-840.45,0.00013698,2]
[346507053,1735013434745,-500.0,0.00013698,2]
[346507054,1735013434756,-500.0,0.00013698,2]
[346507055,1735013434766,-500.0,0.00013698,2]
[346507056,1735013434776,-1247.94,0.00013698,2]
[346507057,1735013434786,-500.0,0.00013698,2]
[346507058,1735013434796,-258.60587915,0.00013698,2]
[346507059,1735013435902,13015.15741782,0.00019,30]
[346507084,1735013440504,-241.39412085,0.00013698,2]
[346507085,1735013440513,-102.4943076,0.00013698,2]
[346507086,1735013440542,-397.5056924,0.00013698,2]
[346507087,1735013440552,-500.0,0.00013698,2]
[346507088,1735013440562,-388.56640835,0.00013698,2]
[346507089,1735013440573,-500.0,0.00013698,2]
[346507090,1735013440608,-173.06359165,0.00013698,2]
[346507091,1735013440617,-500.0,0.00013698,2]
[346507092,1735013440626,-500.0,0.00013698,2]
[346507093,1735013440636,-518.98,0.00013698,2]
[346507094,1735013440645,-500.0,0.00013698,2]
[346507095,1735013440655,-500.0,0.00013698,2]
[346507096,1735013440664,-500.0,0.00013698,2]
[346507097,1735013440674,-500.0,0.00013698,2]
[346507098,1735013440683,-500.0,0.00013698,2]
[346507099,1735013440693,-500.0,0.00013698,2]
[346507101,1735013440702,-500.0,0.00013698,2]
[346507102,1735013440711,-500.0,0.00013698,2]
[346507103,1735013440721,-500.0,0.00013698,2]
[346507104,1735013440731,-503.17544789,0.00013698,2]
[346507105,1735013440740,-500.0,0.00013698,2]
[346507106,1735013440749,-500.0,0.00013698,2]
[346507107,1735013440759,-500.0,0.00013698,2]
[346507108,1735013440768,-500.0,0.00013698,2]
[346507109,1735013440777,-500.0,0.00013698,2]
[346507110,1735013440787,-500.0,0.00013698,2]
[346507111,1735013440796,-500.0,0.00013698,2]
[346507112,1735013440806,-500.0,0.00013698,2]
[346507113,1735013440816,-452.15127984,0.00013698,2]
[346507114,1735013440826,-500.0,0.00013698,2]
[346507115,1735013440835,-500.0,0.00013698,2]
[346507116,1735013440844,-500.0,0.00013698,2]
[346507117,1735013440854,-500.0,0.00013698,2]
[346507118,1735013440863,-500.0,0.00013698,2]
[346507119,1735013440873,-500.0,0.00013698,2]
[346507120,1735013440883,-500.0,0.00013698,2]
[346507121,1735013440893,-500.0,0.00013698,2]
[346507122,1735013440902,-500.0,0.00013698,2]
[346507123,1735013440911,-500.0,0.00013698,2]
[346507124,1735013440922,-500.0,0.00013698,2]
[346507125,1735013440931,-500.0,0.00013698,2]
[346507126,1735013440941,-500.0,0.00013698,2]
[346507127,1735013440951,-500.0,0.00013698,2]
[346507128,1735013440960,-500.0,0.00013698,2]
[346507129,1735013440969,-500.0,0.00013698,2]
[346507130,1735013440979,-500.0,0.00013698,2]
[346507131,1735013440989,-504.30746502,0.00013698,2]
[346507132,1735013440998,-500.0,0.00013698,2]
[346507133,1735013441009,-500.0,0.00013698,2]
[346507134,1735013441018,-500.0,0.00013698,2]
[346507135,1735013441027,-500.0,0.00013698,2]
[346507136,1735013441037,-500.0,0.00013698,2]
[346507137,1735013441046,-582.21,0.00013698,2]
[346507138,1735013441055,-352.7576685,0.00013698,2]
[346507146,1735013443309,-147.2423315,0.00013698,2]
[346507148,1735013443318,-500.0,0.00013698,2]
[346507150,1735013443327,-500.0,0.00013698,2]
[346507151,1735013443337,-500.0,0.00013698,2]
[346507152,1735013443346,-510.54159096,0.00013698,2]
[346507153,1735013443355,-500.0,0.00013698,2]
[346507154,1735013443364,-500.0,0.00013698,2]
[346507155,1735013443377,-500.0,0.00013698,2]
[346507156,1735013443386,-513.69,0.00013698,2]
[346507157,1735013443395,-500.0,0.00013698,2]
[346507158,1735013443404,-500.0,0.00013698,2]
[346507159,1735013443415,-500.0,0.00013698,2]
[346507160,1735013443424,-500.0,0.00013698,2]
[346507161,1735013443433,-500.0,0.00013698,2]
[346507162,1735013443444,-514.13121393,0.00013698,2]
[346507163,1735013443453,-500.0,0.00013698,2]
[346507164,1735013443462,-500.0,0.00013698,2]
[346507165,1735013443471,-500.0,0.00013698,2]
[346507166,1735013443482,-500.0,0.00013698,2]
[346507167,1735013443491,-500.0,0.00013698,2]
[346507168,1735013443500,-500.0,0.00013698,2]
[346507169,1735013443509,-500.0,0.00013698,2]
[346507170,1735013443519,-500.0,0.00013698,2]
[346507171,1735013443528,-314.57367806,0.00013698,2]
[346507172,1735013443537,-500.0,0.00013698,2]
[346507173,1735013443546,-389.50150877,0.00013698,2]
[346507174,1735013443558,-110.49849123,0.00013698,2]
[346507175,1735013443568,-542.02137677,0.00013698,2]
[346507176,1735013443724,-377.65862323,0.00013698,2]
[346507177,1735013443735,-500.0,0.00013698,2]
[346507178,1735013443744,-500.0,0.00013698,2]
[346507179,1735013443753,-500.0,0.00013698,2]
[346507180,1735013443762,-500.0,0.00013698,2]
[346507181,1735013443771,-500.0,0.00013698,2]
[346507182,1735013443780,-500.0,0.00013698,2]
[346507183,1735013443789,-502.68636578,0.00013698,2]
[346507184,1735013443798,-500.0,0.00013698,2]
[346507185,1735013443807,-538.87,0.00013698,2]
[346507186,1735013443816,-500.0,0.00013698,2]
[346507188,1735013443825,-500.0,0.00013698,2]
[346507189,1735013443835,-500.0,0.00013698,2]
[346507190,1735013443844,-500.0,0.00013698,2]
[346507191,1735013443853,-559.0,0.00013698,2]
[346507193,1735013443862,-500.0,0.00013698,2]
[346507194,1735013443871,-500.0,0.00013698,2]
[346507196,1735013443880,-500.0,0.00013698,2]
[346507197,1735013443889,-500.0,0.00013698,2]
[346507198,1735013443899,-500.0,0.00013698,2]
[346507199,1735013443908,-563.89,0.00013698,2]
[346507200,1735013443917,-500.0,0.00013698,2]
[346507201,1735013443926,-500.0,0.00013698,2]
[346507202,1735013443937,-500.0,0.00013698,2]
[346507203,1735013443946,-500.0,0.00013698,2]
[346507204,1735013443956,-500.0,0.00013698,2]
[346507205,1735013443965,-500.0,0.00013698,2]
[346507206,1735013443974,-500.0,0.00013698,2]
[346507207,1735013443984,-892.49,0.00013698,2]
[346507208,1735013443996,-500.0,0.00013698,2]
[346507209,1735013444009,-500.0,0.00013698,2]
[346507210,1735013444018,-500.0,0.00013698,2]
[346507211,1735013444027,-369.69176333,0.00013698,2]
[346507212,1735013444036,-500.0,0.00013698,2]
[346507213,1735013444045,-500.0,0.00013698,2]
[346507214,1735013444055,-500.0,0.00013698,2]
[346507215,1735013444064,-500.0,0.00013698,2]
[346507216,1735013444074,-500.0,0.00013698,2]
[346507217,1735013444083,-500.0,0.00013698,2]
[346507218,1735013444092,-500.0,0.00013698,2]
[346507219,1735013444101,-500.0,0.00013698,2]
[346507220,1735013444110,-500.0,0.00013698,2]
[346507221,1735013444119,-500.0,0.00013698,2]
[346507222,1735013444128,-500.0,0.00013698,2]
[346507223,1735013444137,-500.0,0.00013698,2]
[346507224,1735013444146,-67.47007478,0.00013698,2]
[346507225,1735013446291,-432.52992522,0.00013698,2]
[346507226,1735013446300,-500.0,0.00013698,2]
[346507227,1735013446310,-500.0,0.00013698,2]
[346507228,1735013446319,-825.2,0.00013698,2]
[346507229,1735013446329,-500.0,0.00013698,2]
[346507230,1735013446339,-500.0,0.00013698,2]
[346507231,1735013446348,-500.0,0.00013698,2]
[346507232,1735013446358,-500.0,0.00013698,2]
[346507233,1735013446369,-500.0,0.00013698,2]
[346507234,1735013446380,-500.0,0.00013698,2]
[346507235,1735013446390,-513.87798637,0.00013698,2]
[346507236,1735013446413,-419.58201363,0.00013698,2]
[346507237,1735013446423,-500.0,0.00013698,2]
[346507238,1735013446432,-500.0,0.00013698,2]
[346507239,1735013446441,-500.0,0.00013698,2]
[346507240,1735013446451,-500.0,0.00013698,2]
[346507241,1735013446461,-500.0,0.00013698,2]
[346507242,1735013446470,-502.28129754,0.00013698,2]
[346507243,1735013446480,-838.52,0.00013698,2]
[346507244,1735013446489,-500.0,0.00013698,2]
[346507245,1735013446499,-500.0,0.00013698,2]
[346507246,1735013446508,-500.0,0.00013698,2]
[346507247,1735013446517,-500.0,0.00013698,2]
[346507248,1735013446527,-181.61192745,0.00013698,2]
[346507249,1735013446606,-318.38807255,0.00013698,2]
[346507250,1735013446615,-500.0,0.00013698,2]
[346507251,1735013446625,-167.91338799,0.00013698,2]
[346507252,1735013446660,-332.08661201,0.00013698,2]
[346507253,1735013446669,-690.4,0.00013698,2]
[346507254,1735013446678,-500.87779574,0.00013698,2]
[346507255,1735013446687,-478.78616393,0.00013698,2]
[346507260,1735013646245,539.23,0.00011256,2]
[346507262,1735013902156,168.33,0.00010137,2]
[346507278,1735014614809,512.26,0.00011172,2]
[346507287,1735014631699,-577.10951664,0.00012972,2]
[346507349,1735014637560,-5389.13136669,0.00012972,2]
[346507350,1735014637570,-300.0,0.00012999,2]
[346507351,1735014637579,-450.0,0.00013,2]
[346507352,1735014637588,-17120.11412971,0.00013,2]
[346507353,1735014637687,-555.07237433,0.00013,2]
[346507360,1735014639572,-3055.47532023,0.00013,2]
[346507361,1735014640699,-4482.0,0.00013,2]
[346507363,1735014642478,-10.67812138,0.00013,2]
[346507366,1735014642948,-378.85,0.00013,2]
[346507368,1735014645586,-1224.73989343,0.00013,2]
[346507369,1735014645695,-588.94,0.00013,2]
[346507370,1735014645753,-926.03589053,0.00013,2]
[346507371,1735014645813,-13108.64531815,0.00013,2]
[346507372,1735014645824,-9308.90422396,0.00013,2]
[346507373,1735014645872,-8473.57205103,0.00013,2]
[346507375,1735014970094,158.18,0.00010137,2]
[346507377,1735015208938,306.80441681,0.00026515,60]
[346507378,1735015597569,520.04,0.00010587,2]
[346507390,1735015832182,-259.16,0.0001232,2]
[346507391,1735015832192,-1000.0,0.00012554,2]
[346507392,1735015832202,-2811.308,0.0001274,2]
[346507393,1735015832212,-170.745,0.0001274,2]
[346507394,1735015832223,-520.04,0.00012851,2]
[346507395,1735015832233,-250.0,0.00012876,2]
[346507396,1735015832243,-169.18,0.00012885,2]
[346507397,1735015832254,-300.0,0.00012899,2]
[346507398,1735015832263,-778.2019,0.000129,2]
[346507399,1735015832274,-1000.0,0.000129,2]
[346507400,1735015832284,-162.95507143,0.000129,2]
[346507402,1735015832294,-20317.3825,0.000129,2]
[346507404,1735015832304,-176.83775028,0.000129,2]
[346507406,1735015832315,-278.92222538,0.000129,2]
[346507408,1735015832325,-5519.4627901,0.000129,2]
[346507410,1735015832335,-153.6135474,0.000129,2]
[346507412,1735015832345,-509.35454668,0.000129,2]
[346507414,1735015832356,-167.92542542,0.000129,2]
[346507417,1735015832366,-250.0,0.00012929,2]
[346507419,1735015832376,-610.97,0.00012929,2]
[346507421,1735015832387,-5519.46279002,0.00012978,2]
[346507423,1735015832397,-12686.88,0.00012978,2]
[346507425,1735015832407,-191.37122751,0.0001299,2]
[346507427,1735015832417,-191.37122751,0.0001299,2]
[346507429,1735015832427,-500.0,0.00012999,2]
[346507431,1735015832437,-17685.66700414,0.00013,2]
[346507433,1735015832450,-22640.58276793,0.00013,2]
[346507451,1735015837657,-941.64,0.0001287,2]
[346507462,1735015839646,-515.67949989,0.0001287,2]
[346507464,1735015840229,-1120.5,0.0001287,2]
[346507479,1735015842956,-422.18050011,0.0001287,2]
[346507480,1735015842965,-189.84286574,0.00013,2]
[346507589,1735015845988,-714.65,0.00013,2]
[346507590,1735015846000,-20342.24929981,0.00013,2]
[346507591,1735015846011,-24913.80981949,0.00013,2]
[346507592,1735015846022,-62369.020511,0.00013,2]
[346507593,1735015846077,-170533.51509451,0.00013,2]
[346507594,1735015930202,603.27983363,0.00026515,120]
[346507595,1735016450947,498.09,0.00010583,2]
[346507596,1735016634385,10000.0,0.00026513,60]
[346507597,1735016648112,10000.0,0.00026513,60]
[346507598,1735016914186,176.0,0.00010137,2]
[346507605,1735017031978,-747.04,0.00012388,2]
[346507606,1735017031988,-219.16010298,0.00012473,2]
[346507607,1735017032075,-19.74989702,0.00012473,2]
[346507608,1735017032085,-459.63,0.00012546,2]
[346507609,1735017032095,-158.42010283,0.00012583,2]
[346507610,1735017032107,-414.43195174,0.00012583,2]
[346507611,1735017032240,-427.14794543,0.00012583,2]
[346507612,1735017032250,-359.12,0.00012648,2]
[346507613,1735017032260,-2249.047,0.0001274,2]
[346507614,1735017032270,-170.745,0.0001274,2]
[346507615,1735017032279,-250.0,0.00012811,2]
[346507616,1735017032289,-498.09,0.00012846,2]
[346507617,1735017032298,-199.67932808,0.00012899,2]
[346507618,1735017032316,-100.32067192,0.00012899,2]
[346507619,1735017032325,-152.50424064,0.000129,2]
[346507620,1735017032334,-162.95507142,0.000129,2]
[346507621,1735017032344,-4415.57023207,0.000129,2]
[346507622,1735017032353,-716.15166757,0.000129,2]
[346507623,1735017032362,-500.0,0.00012999,2]
[346507624,1735017032371,-323.01196666,0.00013,2]
[346507700,1735017037849,-966.98803334,0.00013,2]
[346507701,1735017037859,-5.71701759,0.00013,2]
[346507702,1735017037870,-995.87574989,0.00013,2]
[346507703,1735017037882,-500.0,0.00013,2]
[346507704,1735017037905,-963.9,0.00013,2]
[346507705,1735017037988,-361.90353016,0.00013,2]
[346507706,1735017038064,-2869.59369505,0.00013,2]
[346507707,1735017038092,-941.86,0.00013,2]
[346507888,1735017039925,-288.0385521,0.00013,2]
[346507890,1735017039936,-2829.50835785,0.00013,2]
[346507896,1735017039990,-44496.15585297,0.00013,2]
[346507920,1735017040208,-307.5983704,0.00013,2]
[346507927,1735017040264,-52880.8378248,0.00013,2]
[346507929,1735017040274,-450.0,0.00013,2]
[346507931,1735017040283,-3000.0,0.00013,2]
[346507933,1735017040292,-4415.57023201,0.00013008,2]
[346507935,1735017040301,-716.15166751,0.00013008,2]
[346507937,1735017040311,-503.0,0.00013014,2]
[346507939,1735017040320,-694.93,0.0001302,2]
[346507941,1735017040330,-4415.57023201,0.00013116,2]
[346507943,1735017040340,-716.15166751,0.00013116,2]
[346507945,1735017040350,-500.0,0.00013136,2]
[346507947,1735017040359,-4415.57023201,0.00013224,2]
[346507949,1735017040368,-716.15166751,0.00013224,2]
[346507951,1735017040378,-500.0,0.00013273,2]
[346507953,1735017040387,-4415.57023201,0.00013332,2]
[346507955,1735017040396,-716.15166751,0.00013332,2]
[346507957,1735017040406,-500.0,0.0001341,2]
[346507959,1735017040415,-4415.57023201,0.0001344,2]
[346507961,1735017040425,-716.15166751,0.0001344,2]
[346507963,1735017040434,-500.0,0.00013547,2]
[346507965,1735017040443,-4415.57023201,0.00013548,2]
[346507967,1735017040453,-716.15166751,0.00013548,2]
[346507969,1735017040463,-200.89,0.00013642,2]
[346507971,1735017040473,-203.38,0.00013642,2]
[346507973,1735017040483,-4415.57023201,0.00013656,2]
[346507975,1735017040492,-716.15166751,0.00013656,2]
[346507977,1735017040502,-500.0,0.00013684,2]
[346507979,1735017040511,-500.0,0.00013698,2]
[346507981,1735017040520,-500.99027561,0.00013698,2]
[346507983,1735017040530,-500.43404526,0.00013698,2]
[346507985,1735017040543,-500.0,0.00013698,2]
[346507987,1735017040552,-500.0,0.00013698,2]
[346507989,1735017040561,-500.0,0.00013698,2]
[346507990,1735017040570,-500.0,0.00013698,2]
[346507992,1735017040579,-502.24790379,0.00013698,2]
[346507994,1735017040587,-157.014978,0.00013698,2]
[346507996,1735017040597,-500.0,0.00013698,2]
[346507998,1735017040606,-502.31484317,0.00013698,2]
[346508000,1735017040615,-326.15996532,0.00013698,2]
[346508002,1735017040624,-500.0,0.00013698,2]
[346508004,1735017040633,-501.72963227,0.00013698,2]
[346508006,1735017040642,-502.92308917,0.00013698,2]
[346508008,1735017040652,-500.55444039,0.00013698,2]
[346508009,1735017040661,-500.35921893,0.00013698,2]
[346508010,1735017040670,-500.0,0.00013698,2]
[346508011,1735017040679,-500.0,0.00013698,2]
[346508012,1735017040688,-302.51619567,0.00013698,2]
[346508013,1735017040697,-561.92024609,0.00013698,2]
[346508014,1735017040706,-500.93572611,0.00013698,2]
[346508015,1735017040715,-500.0,0.00013698,2]
[346508016,1735017040725,-352.76856041,0.00013698,2]
[346508017,1735017040734,-507.20204533,0.00013698,2]
[346508018,1735017040743,-500.2060757,0.00013698,2]
[346508019,1735017040752,-500.0,0.00013698,2]
[346508020,1735017040761,-500.0,0.00013698,2]
[346508021,1735017040770,-501.41745665,0.00013698,2]
[346508022,1735017040779,-502.22403176,0.00013698,2]
[346508023,1735017040788,-514.07652397,0.00013698,2]
[346508024,1735017040797,-500.0,0.00013698,2]
[346508026,1735017040807,-500.0,0.00013698,2]
[346508028,1735017040816,-503.48221255,0.00013698,2]
[346508030,1735017040826,-500.97761091,0.00013698,2]
[346508032,1735017040835,-504.62144776,0.00013698,2]
[346508034,1735017040845,-501.80840127,0.00013698,2]
[346508036,1735017040854,-500.0,0.00013698,2]
[346508038,1735017040864,-502.55719155,0.00013698,2]
[346508040,1735017040873,-501.03105902,0.00013698,2]
[346508042,1735017040883,-500.0,0.00013698,2]
[346508044,1735017040892,-504.52547222,0.00013698,2]
[346508046,1735017040902,-500.0,0.00013698,2]
[346508048,1735017040912,-500.0,0.00013698,2]
[346508050,1735017040922,-500.0,0.00013698,2]
[346508052,1735017040931,-500.0,0.00013698,2]
[346508054,1735017040941,-557.20748504,0.00013698,2]
[346508055,1735017040950,-500.0,0.00013698,2]
[346508057,1735017040962,-500.0,0.00013698,2]
[346508060,1735017040973,-500.0,0.00013698,2]
[346508061,1735017040985,-500.0,0.00013698,2]
[346508063,1735017040994,-500.0,0.00013698,2]
[346508065,1735017041003,-500.0,0.00013698,2]
[346508067,1735017041013,-500.0,0.00013698,2]
[346508069,1735017041022,-500.0,0.00013698,2]
[346508071,1735017041032,-508.02967284,0.00013698,2]
[346508073,1735017041041,-154.695736,0.00013698,2]
[346508075,1735017041052,-189.99105,0.00013698,2]
[346508077,1735017041062,-557.785434,0.00013698,2]
[346508079,1735017041072,-508.88335829,0.00013698,2]
[346508081,1735017041081,-266.62856474,0.00013698,2]
[346508083,1735017041091,-500.0,0.00013698,2]
[346508085,1735017041100,-664.615719,0.00013698,2]
[346508088,1735017041110,-500.0,0.00013698,2]
[346508090,1735017041120,-500.0,0.00013698,2]
[346508092,1735017041129,-500.0,0.00013698,2]
[346508094,1735017041139,-594.41457897,0.00013698,2]
[346508096,1735017041148,-500.0,0.00013698,2]
[346508098,1735017041157,-500.0,0.00013698,2]
[346508100,1735017041167,-500.0,0.00013698,2]
[346508102,1735017041177,-500.0,0.00013698,2]
[346508104,1735017041186,-500.0,0.00013698,2]
[346508106,1735017041196,-500.0,0.00013698,2]
[346508108,1735017041207,-500.0,0.00013698,2]
[346508110,1735017041216,-502.90831364,0.00013698,2]
[346508112,1735017041225,-500.0,0.00013698,2]
[346508114,1735017041235,-500.0,0.00013698,2]
[346508116,1735017041244,-504.46193109,0.00013698,2]
[346508118,1735017041253,-500.0,0.00013698,2]
[346508120,1735017041262,-500.0,0.00013698,2]
[346508122,1735017041272,-512.0522238,0.00013698,2]
[346508124,1735017041280,-500.0,0.00013698,2]
[346508126,1735017041290,-500.0,0.00013698,2]
[346508128,1735017041299,-500.0,0.00013698,2]
[346508130,1735017041307,-500.0,0.00013698,2]
[346508132,1735017041318,-500.0,0.00013698,2]
[346508134,1735017041327,-500.0,0.00013698,2]
[346508136,1735017041337,-500.0,0.00013698,2]